bitfinex-derivatives/quotes_BTCF0:USTF0_20250906
["timestamp","ask_amount","ask_price","bid_price","bid_amount"]
[1757150944444,1.16091244,110780.0,110770.0,0.69809784]
[1757150944642,1.16091244,110780.0,110770.0,0.3712165]
[1757150944844,1.16091244,110780.0,110770.0,0.61703134]
[1757150945438,0.8340311,110780.0,110770.0,0.04015]
[1757150946544,1.12477716,110780.0,110770.0,0.04015]
[1757150947146,0.8340311,110780.0,110770.0,0.04015]
[1757150947346,1.12477716,110780.0,110770.0,0.04015]
[1757150949044,1.12477716,110780.0,110770.0,0.01828]
[1757150949635,1.12477716,110780.0,110770.0,0.04017]
[1757150951549,0.8340311,110780.0,110770.0,0.04017]
[1757150951847,1.12477716,110780.0,110770.0,0.04017]
[1757150967663,0.8340311,110780.0,110770.0,0.04017]
[1757150967871,1.12477716,110780.0,110770.0,0.04017]
[1757150968268,0.8340311,110780.0,110770.0,0.04017]
[1757150968565,1.12477716,110780.0,110770.0,0.04017]
[1757150970365,0.8340311,110780.0,110770.0,0.04017]
[1757150970668,1.12477716,110780.0,110770.0,0.04017]
[1757150978274,0.30469716,110780.0,110770.0,0.04017]
[1757150978476,1.14157716,110780.0,110770.0,0.04017]
[1757150979377,0.8507511,110780.0,110770.0,0.04017]
[1757150979778,0.8509911,110780.0,110770.0,0.04017]
[1757150982380,0.0139511,110780.0,110770.0,0.04017]
[1757150982580,0.8515111,110780.0,110770.0,0.04017]
[1757150990686,0.0139511,110780.0,110770.0,0.04017]
[1757150990984,0.8511111,110780.0,110770.0,0.04017]
[1757150991685,0.0139511,110780.0,110770.0,0.04017]
[1757150991888,0.8510311,110780.0,110770.0,0.04017]
[1757150992286,0.0139511,110780.0,110770.0,0.04017]
[1757150992482,0.8510311,110780.0,110770.0,0.04017]
[1757150994687,0.0139511,110780.0,110770.0,0.04017]
[1757150994887,0.8507511,110780.0,110770.0,0.04017]
[1757151005487,0.0139511,110780.0,110770.0,0.36710075]
[1757151005692,0.8492711,110780.0,110770.0,0.36710075]
[1757151005999,0.8491111,110780.0,110770.0,0.36710075]
[1757151006495,0.0139511,110780.0,110770.0,0.36710075]
[1757151014606,0.0139511,110780.0,110770.0,0.04017]
[1757151014802,0.0139511,110780.0,110770.0,0.36710075]
[1757151015199,0.0139511,110780.0,110770.0,0.04017]
[1757151015200,0.34088185,110780.0,110770.0,0.04017]
[1757151015706,0.34088185,110780.0,110770.0,0.36710075]
[1757151016400,0.34088185,110780.0,110770.0,0.04017]
[1757151016600,0.34088185,110780.0,110770.0,0.36710075]
[1757151016601,0.0139511,110780.0,110770.0,0.36710075]
[1757151016801,0.34088185,110780.0,110770.0,0.36710075]
[1757151017805,0.0139511,110780.0,110770.0,0.36710075]
[1757151018305,0.34088185,110780.0,110770.0,0.04017]
[1757151018494,0.34088185,110780.0,110770.0,0.36710075]
[1757151022206,0.0139511,110780.0,110770.0,0.04017]
[1757151022407,0.0139511,110780.0,110770.0,0.36710075]
[1757151022707,0.34088185,110780.0,110770.0,0.04017]
[1757151022895,0.34088185,110780.0,110770.0,0.36710075]
[1757151025800,0.0139511,110780.0,110770.0,0.36710075]
[1757151026005,0.34088185,110780.0,110770.0,0.36710075]
[1757151026207,0.43114465,110780.0,110770.0,0.36710075]
[1757151026806,0.1042139,110780.0,110770.0,0.04017]
[1757151026998,0.43114465,110780.0,110770.0,0.36710075]
[1757151030810,0.1042139,110780.0,110770.0,0.36710075]
[1757151031205,0.43114465,110780.0,110770.0,0.36710075]
[1757151032911,0.1042139,110780.0,110770.0,0.04017]
[1757151033209,0.43114465,110780.0,110770.0,0.36710075]
[1757151033510,0.43114465,110780.0,110770.0,0.44816725]
[1757151033706,0.09511687,110780.0,110770.0,0.1212365]
[1757151033907,0.09228687,110780.0,110770.0,0.70736965]
[1757151034308,0.09228687,110780.0,110770.0,0.78858483]
[1757151035411,0.09228687,110780.0,110770.0,0.69831593]
[1757151038015,0.09228687,110780.0,110770.0,0.78858493]
[1757151039315,0.09228687,110780.0,110770.0,0.53858493]
[1757151042913,0.09228687,110780.0,110770.0,0.21165418]
[1757151043114,0.09228687,110780.0,110770.0,0.53858493]
[1757151045218,0.09228687,110780.0,110770.0,0.45736975]
[1757151048412,0.09228687,110780.0,110770.0,0.53858493]
[1757151048613,0.00013524,110790.0,110780.0,0.1261206]
[1757151048813,0.00013524,110790.0,110780.0,1.69367728]
[1757151049918,0.00013524,110790.0,110780.0,1.69467728]
[1757151050307,0.00013524,110790.0,110780.0,1.69567728]
[1757151050920,0.0001,110800.0,110790.0,0.03586]
[1757151051113,0.0001,110800.0,110790.0,0.69899696]
[1757151051516,0.0001,110800.0,110790.0,0.6897215]
[1757151052020,0.0001,110800.0,110790.0,0.779974]
[1757151054724,0.0001,110800.0,110790.0,0.86118918]
[1757151062932,0.0001,110800.0,110790.0,0.779974]
[1757151064231,0.0001,110800.0,110790.0,1.610494]
[1757151065530,0.0001,110800.0,110790.0,1.24703273]
[1757151069637,0.0001,110800.0,110790.0,1.26516066]
[1757151072941,0.0001,110800.0,110790.0,1.34637584]
[1757151078250,0.0001,110800.0,110790.0,1.26516066]
[1757151079949,0.0001,110800.0,110790.0,1.34636839]
[1757151084555,0.0001,110800.0,110790.0,1.05596816]
[1757151084853,0.0001,110800.0,110790.0,1.34636839]
[1757151085749,0.0001,110800.0,110790.0,0.42559589]
[1757151086150,0.0001,110800.0,110790.0,1.22839589]
[1757151088958,0.01434,110800.0,110790.0,0.93799566]
[1757151089265,0.01434,110800.0,110790.0,1.22839589]
[1757151090264,0.01434,110800.0,110790.0,1.22939589]
[1757151090458,0.01434,110800.0,110790.0,1.14818816]
[1757151091658,0.0001,110800.0,110790.0,1.14818816]
[1757151091867,0.0001,110800.0,110790.0,1.14918816]
[1757151092266,0.0001,110800.0,110790.0,1.15118816]
[1757151092565,0.0001,110800.0,110790.0,1.26282713]
[1757151092862,0.0001,110800.0,110790.0,1.26582713]
[1757151096762,0.0001,110800.0,110790.0,1.15218816]
[1757151097957,0.01434,110800.0,110790.0,1.15218816]
[1757151098163,0.0001,110800.0,110790.0,1.15218816]
[1757151098364,0.0001,110800.0,110790.0,1.26582713]
[1757151102868,0.0001,110800.0,110790.0,1.23344304]
[1757151119584,0.0001,110800.0,110790.0,1.15218816]
[1757151121186,0.0001,110800.0,110790.0,1.24244036]
[1757151121386,0.0001,110800.0,110790.0,1.35607933]
[1757151125492,0.0001,110800.0,110790.0,1.71914104]
[1757151126993,0.00927081,110820.0,110790.0,1.71914104]
[1757151127185,0.32673097,110850.0,110820.0,0.03575]
[1757151127489,0.35405269,110850.0,110830.0,0.01385]
[1757151128682,0.34113097,110840.0,110830.0,0.36248097]
[1757151128888,0.59113097,110840.0,110830.0,0.36248097]
[1757151130495,0.59313097,110840.0,110830.0,0.36248097]
[1757151130996,0.66558128,110840.0,110830.0,0.36248097]
[1757151131197,0.66958128,110840.0,110830.0,0.36248097]
[1757151132400,0.34285031,110840.0,110830.0,0.36248097]
[1757151132899,0.66958128,110840.0,110830.0,0.36248097]
[1757151138905,0.34285031,110840.0,110830.0,0.36248097]
[1757151139399,0.66958128,110840.0,110830.0,0.36248097]
[1757151151519,0.34285031,110840.0,110830.0,0.36248097]
[1757151151824,0.66968128,110840.0,110830.0,0.36248097]
[1757151153120,0.34295031,110840.0,110830.0,0.36248097]
[1757151153420,0.66968128,110840.0,110830.0,0.36248097]
[1757151155228,0.66968128,110840.0,110830.0,0.03575]
[1757151155429,0.66968128,110840.0,110830.0,0.36248097]
[1757151156328,0.69246923,110840.0,110830.0,0.36248097]
[1757151156930,0.66968128,110840.0,110830.0,0.36248097]
[1757151157228,0.69246934,110840.0,110830.0,0.36248097]
[1757151159328,0.44246934,110840.0,110830.0,0.36248097]
[1757151159726,0.11573837,110840.0,110830.0,0.36248097]
[1757151159923,0.44246934,110840.0,110830.0,0.36248097]
[1757151162835,0.41968128,110840.0,110830.0,0.36248097]
[1757151168742,0.41968128,110840.0,110830.0,0.03575]
[1757151168934,0.41968128,110840.0,110830.0,0.36248097]
[1757151171542,0.41968128,110840.0,110830.0,0.03575]
[1757151171742,0.41968128,110840.0,110830.0,0.36248097]
[1757151173439,0.09295031,110840.0,110830.0,0.36248097]
[1757151177540,0.09295031,110840.0,110830.0,0.03575]
[1757151177742,0.09295031,110840.0,110830.0,0.36248097]
[1757151179047,0.41968128,110840.0,110830.0,0.03575]
[1757151179345,0.41968128,110840.0,110830.0,0.36248097]
[1757151179546,0.09295031,110840.0,110830.0,0.36248097]
[1757151183353,0.41968128,110840.0,110830.0,0.36248097]
[1757151184649,0.09295031,110840.0,110830.0,0.36248097]
[1757151187453,0.09295031,110840.0,110830.0,0.03575]
[1757151193053,0.11570931,110840.0,110830.0,0.03575]
[1757151202966,0.09295031,110840.0,110830.0,0.03575]
[1757151210462,0.09295031,110840.0,110830.0,0.32605649]
[1757151212373,0.09295031,110840.0,110830.0,0.03575]
[1757151229182,0.09295031,110840.0,110830.0,0.32605649]
[1757151230985,0.09295031,110840.0,110830.0,0.03575]
[1757151231184,0.09295031,110840.0,110830.0,0.32605649]
[1757151233689,0.09295031,110840.0,110830.0,0.03575]
[1757151234489,0.09295031,110840.0,110830.0,0.32605649]
[1757151243794,0.09295031,110840.0,110830.0,0.03575]
[1757151243996,0.09295031,110840.0,110830.0,0.32605649]
[1757151244392,0.09295031,110840.0,110830.0,0.03575]
[1757151247402,0.09295031,110840.0,110830.0,0.32605649]
[1757151247702,0.41955045,110840.0,110830.0,0.36235014]
[1757151249504,0.09295031,110840.0,110830.0,0.36235014]
[1757151249698,0.41955045,110840.0,110830.0,0.36235014]
[1757151255512,0.09295031,110840.0,110830.0,0.36235014]
[1757151255713,0.41955045,110840.0,110830.0,0.36235014]
[1757151258710,0.09295031,110840.0,110830.0,0.36235014]
[1757151258910,0.41955045,110840.0,110830.0,0.36235014]
[1757151261015,0.09295031,110840.0,110830.0,0.36235014]
[1757151262613,0.41955045,110840.0,110830.0,0.36235014]
[1757151263714,0.09295031,110840.0,110830.0,0.36235014]
[1757151263910,0.91555031,110840.0,110830.0,0.36235014]
[1757151275121,0.09295031,110840.0,110830.0,0.36235014]
[1757151275421,0.91535031,110840.0,110830.0,0.44360654]
[1757151276417,0.91535031,110840.0,110830.0,0.36235014]
[1757151278727,0.91535031,110840.0,110830.0,0.44360654]
[1757151279120,0.91535031,110840.0,110830.0,0.36235014]
[1757151279326,0.91535031,110840.0,110830.0,0.03575]
[1757151279622,0.91535031,110840.0,110830.0,0.36235014]
[1757151279824,0.91527031,110840.0,110830.0,0.36235014]
[1757151280022,0.91527031,110840.0,110830.0,0.44360654]
[1757151282022,0.07855031,110840.0,110830.0,0.44360654]
[1757151282223,0.07855031,110840.0,110830.0,0.69360654]
[1757151284227,0.07855031,110840.0,110830.0,0.61235014]
[1757151284624,0.07655031,110840.0,110830.0,0.61235014]
[1757151286030,0.07255031,110840.0,110830.0,0.61235014]
[1757151286330,0.07455031,110840.0,110830.0,0.61235014]
[1757151290026,0.08895031,110840.0,110830.0,0.61235014]
[1757151291335,0.07455031,110840.0,110830.0,0.61235014]
[1757151292831,0.07455031,110840.0,110830.0,0.69360654]
[1757151293538,0.07455031,110840.0,110830.0,0.61235014]
[1757151294443,0.07455031,110840.0,110830.0,0.69360654]
[1757151295743,0.07455031,110840.0,110830.0,0.3670064]
[1757151295947,0.07455031,110840.0,110830.0,0.69360654]
[1757151303648,0.07455031,110840.0,110830.0,0.44360654]
[1757151305052,0.07455031,110840.0,110830.0,1.26544654]
[1757151309456,0.07455031,110840.0,110830.0,1.22906068]
[1757151316757,0.0021,110840.0,110830.0,1.22906068]
[1757151342192,0.0021,110840.0,110830.0,1.31928238]
[1757151342786,0.0021,110840.0,110830.0,0.9388464]
[1757151342989,0.0021,110840.0,110830.0,1.22906068]
[1757151350894,0.0021,110840.0,110830.0,1.14780428]
[1757151351899,0.0021,110840.0,110830.0,1.22903659]
[1757151352800,0.0021,110840.0,110830.0,1.22819659]
[1757151365615,0.0021,110840.0,110830.0,1.22919659]
[1757151366115,0.0001,110840.0,110830.0,1.22919659]
[1757151366414,0.0011,110840.0,110830.0,1.22919659]
[1757151369412,0.0011,110840.0,110830.0,1.26546862]
[1757151373219,0.0011,110840.0,110830.0,1.18423631]
[1757151379923,0.0011,110840.0,110830.0,1.26546862]
[1757151383029,0.0011,110840.0,110830.0,1.29787528]
[1757151384630,0.0011,110840.0,110830.0,1.38809698]
[1757151390332,0.0011,110840.0,110830.0,1.27445801]
[1757151393030,0.0011,110840.0,110830.0,1.35569471]
[1757151395032,0.0011,110840.0,110830.0,1.27445801]
[1757151396834,0.0011,110840.0,110830.0,0.9479717]
[1757151397034,0.0011,110840.0,110830.0,1.27445801]
[1757151399539,0.0011,110840.0,110830.0,1.35569337]
[1757151406453,0.0011,110840.0,110830.0,1.27445801]
[1757151407149,0.0011,110840.0,110830.0,1.68217883]
[1757151408238,0.00906426,110860.0,110850.0,0.01283]
[1757151408550,0.46484631,110880.0,110870.0,0.03572]
[1757151408747,0.74499983,110880.0,110870.0,0.36220631]
[1757151409051,1.56515983,110880.0,110870.0,0.36220631]
[1757151409549,0.99499983,110880.0,110870.0,0.36220631]
[1757151409748,0.41851352,110880.0,110870.0,0.36220631]
[1757151409955,0.39616,110880.0,110870.0,0.36220631]
[1757151410155,0.39616,110880.0,110870.0,0.35920631]
[1757151410451,0.72264631,110880.0,110870.0,0.35820631]
[1757151410746,0.72664631,110880.0,110870.0,0.35820631]
[1757151411346,0.72864631,110880.0,110870.0,0.35820631]
[1757151411650,0.47290327,110880.0,110870.0,0.35820631]
[1757151411851,0.10182373,110880.0,110870.0,0.35820631]
[1757151416342,0.12182373,110880.0,110870.0,0.35820631]
[1757151417156,0.10182373,110880.0,110870.0,0.35820631]
[1757151429458,0.10182373,110880.0,110870.0,0.32181513]
[1757151430367,0.10182373,110880.0,110870.0,0.03172]
[1757151430565,0.10182373,110880.0,110870.0,0.32181513]
[1757151435866,0.09982373,110880.0,110870.0,0.32181513]
[1757151436068,0.10082373,110880.0,110870.0,0.32181513]
[1757151437870,0.09782373,110880.0,110870.0,0.32181513]
[1757151439672,0.07462373,110880.0,110870.0,0.32181513]
[1757151439970,0.002,110880.0,110870.0,0.32181513]
[1757151440164,0.07272163,110880.0,110870.0,0.32181513]
[1757151440367,0.002,110880.0,110870.0,0.32181513]
[1757151442874,0.352,110880.0,110870.0,0.32181513]
[1757151443170,0.36112558,110880.0,110870.0,0.32181513]
[1757151444473,0.43474014,110880.0,110870.0,0.32181513]
[1757151446170,0.19474014,110880.0,110870.0,0.32181513]
[1757151447570,0.08474014,110880.0,110870.0,0.32181513]
[1757151448073,0.08474014,110880.0,110870.0,0.03172]
[1757151448377,0.08474014,110880.0,110870.0,0.32181513]
[1757151454984,0.90422014,110880.0,110870.0,0.32181513]
[1757151455978,0.90322014,110880.0,110870.0,0.32181513]
[1757151456378,0.90222014,110880.0,110870.0,0.32181513]
[1757151456882,0.08274014,110880.0,110870.0,0.32181513]
[1757151457077,0.81948,110880.0,110870.0,0.32181513]
[1757151458382,0.89230099,110880.0,110870.0,0.32181513]
[1757151459782,0.90148327,110880.0,110870.0,0.32181513]
[1757151462185,0.08200327,110880.0,110870.0,0.32181513]
[1757151462381,0.8194,110880.0,110870.0,0.32181513]
[1757151463086,0.89214163,110880.0,110870.0,0.32181513]
[1757151463384,0.89210163,110880.0,110870.0,0.32181513]
[1757151464081,0.90099001,110880.0,110870.0,0.32181513]
[1757151477606,0.08163001,110880.0,110870.0,0.32181513]
[1757151477909,0.73696,110880.0,110870.0,0.32181513]
[1757151478094,0.80935532,110880.0,110870.0,0.32181513]
[1757151479699,0.89155532,110880.0,110870.0,0.32181513]
[1757151480099,0.90055089,110880.0,110870.0,0.32181513]
[1757151481103,0.08139089,110880.0,110870.0,0.32181513]
[1757151481310,0.81912,110880.0,110870.0,0.32181513]
[1757151481608,0.82835068,110880.0,110870.0,0.32181513]
[1757151482607,0.90001017,110880.0,110870.0,0.32181513]
[1757151491409,0.90001017,110880.0,110870.0,0.35806877]
[1757151494816,0.90001017,110880.0,110870.0,0.03172]
[1757151495114,0.90001017,110880.0,110870.0,0.35806877]
[1757151496714,0.90001017,110880.0,110870.0,0.03172]
[1757151496918,0.90001017,110880.0,110870.0,0.35806877]
[1757151501219,0.90001017,110880.0,110870.0,0.43930328]
[1757151509825,0.90001017,110880.0,110870.0,0.11295451]
[1757151510014,0.90001017,110880.0,110870.0,0.43930328]
[1757151510627,1.22635894,110880.0,110870.0,0.11295451]
[1757151510820,1.80270771,110880.0,110870.0,0.00883]
[1757151511027,1.47635894,110880.0,110870.0,0.00883]
[1757151511833,1.47635894,110880.0,110870.0,0.03072]
[1757151512227,1.15001017,110880.0,110870.0,0.00883]
[1757151512432,1.47635894,110880.0,110870.0,0.00883]
[1757151514931,1.80270771,110880.0,110870.0,0.00883]
[1757151515136,1.80270771,110880.0,110860.0,0.03485524]
[1757151515431,0.32634877,110870.0,110860.0,0.36120401]
[1757151517839,0.32634877,110870.0,110860.0,0.36220401]
[1757151519133,0.32634877,110870.0,110860.0,0.36320401]
[1757151521940,0.90011017,110880.0,110860.0,0.36320401]
[1757151522142,0.32634877,110870.0,110860.0,0.36320401]
[1757151524443,0.90011017,110880.0,110870.0,0.01308]
[1757151524645,1.22635894,110880.0,110870.0,0.01308]
[1757151535850,1.22635894,110880.0,110870.0,0.03413]
[1757151543644,1.22635894,110880.0,110870.0,0.01308]
[1757151544352,0.90001017,110880.0,110870.0,0.01308]
[1757151544551,1.22635894,110880.0,110870.0,0.01308]
[1757151545750,1.22571894,110880.0,110870.0,0.01308]
[1757151548855,1.55206771,110880.0,110870.0,0.01308]
[1757151549353,0.73358771,110880.0,110870.0,0.01308]
[1757151549549,1.55206771,110880.0,110870.0,0.01308]
[1757151549750,1.22571894,110880.0,110870.0,0.01308]
[1757151550056,0.40723894,110880.0,110870.0,0.03413]
[1757151550248,1.22567894,110880.0,110870.0,0.03413]
[1757151553464,1.18949521,110880.0,110870.0,0.03413]
[1757151559564,1.18949521,110880.0,110870.0,0.01308]
[1757151563068,1.21178312,110880.0,110870.0,0.01308]
[1757151565172,1.75194816,110880.0,110860.0,0.01296524]
[1757151565474,0.29016504,110870.0,110860.0,0.00013524]
[1757151565675,0.31245295,110870.0,110860.0,0.00013524]
[1757151566068,0.31245087,110870.0,110860.0,0.00013524]
[1757151573079,0.29016504,110870.0,110860.0,0.00013524]
[1757151597595,0.08099017,110880.0,110860.0,0.01293524]
[1757151597793,1.10816504,110870.0,110860.0,0.01293524]
[1757151603084,1.13044832,110870.0,110860.0,0.01293524]
[1757151613002,1.10816504,110870.0,110860.0,0.01293524]
[1757151615506,1.14448873,110870.0,110860.0,0.01293524]
[1757151617304,0.32648873,110870.0,110860.0,0.01293524]
[1757151617497,1.14432873,110870.0,110860.0,0.01293524]
[1757151618106,0.32648873,110870.0,110860.0,0.01293524]
[1757151618405,1.14432873,110870.0,110860.0,0.03453524]
[1757151619104,0.32648873,110870.0,110860.0,0.03453524]
[1757151619502,1.14428873,110870.0,110860.0,0.03453524]
[1757151623407,0.32648873,110870.0,110860.0,0.03453524]
[1757151623712,1.14424873,110870.0,110860.0,0.36102397]
[1757151630323,1.14424873,110870.0,110860.0,0.03453524]
[1757151630613,1.14424873,110870.0,110860.0,0.36102397]
[1757151631609,0.81776,110870.0,110860.0,0.36102397]
[1757151631817,1.14424873,110870.0,110860.0,0.36102397]
[1757151634524,0.81776,110870.0,110860.0,0.36102397]
[1757151634713,1.14424873,110870.0,110860.0,0.36102397]
[1757151642116,0.4074789,110880.0,110870.0,0.01316]
[1757151642321,1.24725296,110880.0,110870.0,0.36271873]
[1757151643622,1.24825296,110880.0,110870.0,0.36271873]
[1757151643823,1.24925296,110880.0,110870.0,0.36271873]
[1757151648924,1.24925296,110880.0,110870.0,0.03623]
[1757151654727,1.24925296,110880.0,110870.0,0.36271873]
[1757151656824,1.24925296,110880.0,110870.0,0.03623]
[1757151657031,1.24925296,110880.0,110870.0,0.36271873]
[1757151659422,0.43165296,110880.0,110870.0,0.36271873]
[1757151659630,1.24905296,110880.0,110870.0,0.36271873]
[1757151668225,1.2266989,110880.0,110870.0,0.36271873]
[1757151672736,0.4093789,110880.0,110870.0,0.36271873]
[1757151672935,1.2266189,110880.0,110870.0,0.36271873]
[1757151675532,0.90013017,110880.0,110870.0,0.03623]
[1757151676338,0.90009017,110880.0,110870.0,0.32633955]
[1757151676935,0.90009017,110880.0,110870.0,0.57633955]
[1757151677233,0.90005017,110880.0,110870.0,0.57633955]
[1757151681542,0.89905017,110880.0,110870.0,0.57633955]
[1757151683541,0.89805017,110880.0,110870.0,0.57633955]
[1757151685234,0.89797017,110880.0,110870.0,0.32633955]
[1757151685438,0.0001,110890.0,110880.0,0.03638]
[1757151685639,0.81704,110890.0,110880.0,0.32648955]
[1757151686542,0.82621462,110890.0,110880.0,0.32648955]
[1757151688146,0.89801192,110890.0,110880.0,0.32648955]
[1757151689745,0.89797192,110890.0,110880.0,0.32648955]
[1757151708976,0.89797192,110890.0,110880.0,0.03638]
[1757151709272,0.89797192,110890.0,110880.0,0.32648955]
[1757151711478,0.08097192,110890.0,110880.0,0.32648955]
[1757151711677,0.81672,110890.0,110880.0,0.32648955]
[1757151714381,0.82598155,110890.0,110880.0,0.32648955]
[1757151715885,0.89651647,110890.0,110880.0,0.32648955]
[1757151722188,0.89651647,110890.0,110880.0,0.40772406]
[1757151723289,0.89651647,110890.0,110880.0,0.32648955]
[1757151737397,0.89651647,110890.0,110880.0,0.36267706]
[1757151743707,0.89651647,110890.0,110880.0,0.03638]
[1757151743906,0.89651647,110890.0,110880.0,0.36267706]
[1757151753426,0.89651647,110890.0,110880.0,0.44391157]
[1757151754927,0.89651647,110890.0,110880.0,0.11761451]
[1757151755228,0.89651647,110890.0,110880.0,0.44391157]
[1757151756629,0.89651647,110890.0,110880.0,0.11761451]
[1757151756828,0.89651647,110890.0,110880.0,0.44391157]
[1757151757230,0.89651647,110890.0,110880.0,0.36267706]
[1757151757431,0.89651647,110890.0,110880.0,0.44391157]
[1757151763226,0.89651647,110890.0,110880.0,0.03638]
[1757151763629,0.89651647,110890.0,110880.0,0.36267706]
[1757151770237,0.89651647,110890.0,110880.0,0.36367706]
[1757151773136,0.89651647,110890.0,110880.0,0.44491157]
[1757151774043,0.89651647,110890.0,110880.0,0.11861451]
[1757151774342,0.89651647,110890.0,110880.0,0.44491157]
[1757151774544,0.89651647,110890.0,110880.0,0.36367706]
[1757151776538,0.89651647,110890.0,110880.0,0.44491157]
[1757151782650,0.89651647,110890.0,110880.0,0.36367706]
[1757151783350,0.89651647,110890.0,110880.0,0.03738]
[1757151783539,0.89651647,110890.0,110880.0,0.36367706]
[1757151790653,0.89651647,110890.0,110880.0,0.03738]
[1757151790849,0.89651647,110890.0,110880.0,0.36367706]
[1757151792453,0.89651647,110890.0,110880.0,0.03738]
[1757151792454,1.22281353,110890.0,110880.0,0.03738]
[1757151793250,1.22281353,110890.0,110880.0,0.36367706]
[1757151794656,0.89651647,110890.0,110880.0,0.36367706]
[1757151794858,1.22281353,110890.0,110880.0,0.36367706]
[1757151795155,0.89651647,110890.0,110880.0,0.36367706]
[1757151795356,1.22281353,110890.0,110880.0,0.36367706]
[1757151797451,0.89651647,110890.0,110880.0,0.03738]
[1757151803163,0.89651647,110890.0,110880.0,0.11861451]
[1757151804062,0.89651647,110890.0,110880.0,0.40866776]
[1757151805465,0.89651647,110890.0,110880.0,0.11861451]
[1757151805657,0.89651647,110890.0,110880.0,0.40866776]
[1757151823173,0.89651647,110890.0,110880.0,0.32743325]
[1757151831277,0.89651647,110890.0,110880.0,0.03738]
[1757151831671,0.89651647,110890.0,110880.0,0.32743325]
[1757151833178,0.89651647,110890.0,110880.0,0.40866776]
[1757151838786,0.89651647,110890.0,110880.0,0.11861451]
[1757151839084,0.89651647,110890.0,110880.0,0.40866776]
[1757151840182,0.89651647,110890.0,110880.0,0.32743325]
[1757151841587,0.89651647,110890.0,110880.0,0.03738]
[1757151841883,0.89651647,110890.0,110880.0,0.32743325]
[1757151859495,0.89651647,110890.0,110880.0,0.36367865]
[1757151862302,0.89787647,110890.0,110880.0,0.77121181]
[1757151862488,0.81808,110890.0,110880.0,0.77121181]
[1757151864094,0.81808,110890.0,110880.0,0.44491316]
[1757151864599,0.82703503,110890.0,110880.0,0.44491316]
[1757151865498,0.8983923,110890.0,110880.0,0.44491316]
[1757151872017,0.8983923,110890.0,110880.0,0.36367865]
[1757151872211,0.8983923,110890.0,110880.0,0.44491316]
[1757151873218,0.8983923,110890.0,110880.0,0.36367865]
[1757151876718,0.8983923,110890.0,110880.0,0.03738]
[1757151876917,0.8983923,110890.0,110880.0,0.36367865]
[1757151891023,0.8983923,110890.0,110880.0,0.44491316]
[1757151898627,0.8983923,110890.0,110880.0,0.36367865]
[1757151903029,0.8983923,110890.0,110880.0,0.03738]
[1757151903421,0.8983923,110890.0,110880.0,0.36367865]
[1757151908633,0.8983923,110890.0,110880.0,0.44491316]
[1757151908822,0.8983923,110890.0,110880.0,0.36367865]
[1757151909832,0.0803123,110890.0,110880.0,0.6899773]
[1757151910030,0.30588,110890.0,110880.0,0.6899773]
[1757151910231,0.30588,110890.0,110880.0,0.77121181]
[1757151910526,0.30588,110890.0,110880.0,0.6899773]
[1757151913827,0.37648705,110890.0,110880.0,0.6899773]
[1757151914233,0.38548036,110890.0,110880.0,0.6899773]
[1757151914930,0.07960036,110890.0,110880.0,0.6899773]
[1757151915128,1.14327865,110900.0,110880.0,0.6899773]
[1757151915431,0.83910994,110900.0,110890.0,0.36273865]
[1757151915630,0.83900994,110900.0,110890.0,0.36273865]
[1757151916732,0.84000994,110900.0,110890.0,0.36273865]
[1757151917434,0.84887381,110900.0,110890.0,0.36273865]
[1757151917827,0.03199381,110900.0,110890.0,0.36273865]
[1757151918022,0.64715381,110900.0,110890.0,0.36273865]
[1757151918430,0.10453479,110900.0,110890.0,0.36273865]
[1757151918635,0.78857479,110900.0,110890.0,0.36273865]
[1757151919434,0.78857479,110900.0,110890.0,0.32641465]
[1757151919636,0.92141479,110900.0,110890.0,0.32641465]
[1757151921838,0.10453479,110900.0,110890.0,0.32641465]
[1757151922038,0.66253479,110900.0,110890.0,0.32641465]
[1757151922225,0.64040485,110900.0,110890.0,0.32641465]
[1757151925339,0.63940485,110900.0,110890.0,0.32641465]
[1757151933444,0.63940485,110900.0,110890.0,0.32841465]
[1757151933636,0.63940485,110900.0,110890.0,0.32941465]
[1757151941143,0.08140485,110900.0,110890.0,0.32941465]
[1757151941348,0.81686,110910.0,110890.0,0.32941465]
[1757151941536,0.81686,110910.0,110900.0,0.03699]
[1757151941736,0.29007465,110920.0,110900.0,0.03699]
[1757151941942,0.66215861,110920.0,110910.0,0.03699]
[1757151942247,1.72881861,110920.0,110910.0,0.03699]
[1757151942449,1.55111574,110920.0,110910.0,0.03699]
[1757151942747,1.55111574,110920.0,110910.0,0.01388]
[1757151944451,0.73435574,110920.0,110910.0,0.01388]
[1757151944647,1.55211574,110920.0,110910.0,0.01388]
[1757151944843,1.55211574,110920.0,110910.0,0.03699]
[1757151946151,1.55211574,110920.0,110910.0,0.01388]
[1757151947052,1.27122034,110920.0,110910.0,0.01388]
[1757151947251,1.56119499,110920.0,110910.0,0.03515]
[1757151948252,1.56119499,110920.0,110910.0,0.01388]
[1757151951950,1.56119499,110920.0,110900.0,0.03528524]
[1757151952150,1.56129499,110920.0,110900.0,0.03528524]
[1757151954150,1.56029499,110920.0,110900.0,0.03528524]
[1757151954356,0.81676,110910.0,110900.0,0.03528524]
[1757151961962,0.37145103,110920.0,110900.0,0.03528524]
[1757151962261,0.43358331,110920.0,110910.0,0.03423]
[1757151962463,1.25020331,110920.0,110910.0,0.03423]
[1757151963358,0.43348331,110920.0,110910.0,0.03423]
[1757151963560,1.25020331,110920.0,110910.0,0.03423]
[1757151964464,1.25120331,110920.0,110910.0,0.03423]
[1757151965159,0.10448331,110920.0,110910.0,0.03423]
[1757151965367,0.92120331,110920.0,110910.0,0.03423]
[1757151974266,0.10448331,110920.0,110910.0,0.03423]
[1757151974466,0.92116331,110920.0,110910.0,0.03423]
[1757151975572,0.89905638,110920.0,110910.0,0.03423]
[1757151977062,0.08237638,110920.0,110910.0,0.03423]
[1757151977263,0.89901638,110920.0,110910.0,0.03423]
[1757151978269,0.08237638,110920.0,110910.0,0.03423]
[1757151978469,0.89901638,110920.0,110910.0,0.03423]
[1757151979467,1.22518887,110920.0,110910.0,0.36040249]
[1757151980667,1.24727601,110920.0,110910.0,0.36040249]
[1757151989877,1.24727601,110920.0,110910.0,0.03423]
[1757151990177,1.24727601,110920.0,110910.0,0.36040249]
[1757151996093,1.24727601,110920.0,110910.0,0.03423]
[1757151996288,1.24727601,110920.0,110910.0,0.36040249]
[1757152001591,1.29727601,110920.0,110910.0,0.36040249]
[1757152009490,1.29727601,110920.0,110910.0,0.03423]
[1757152009692,1.29727601,110920.0,110900.0,0.03502524]
[1757152009994,0.32617249,110910.0,110900.0,0.34018773]
[1757152010193,0.34825963,110910.0,110900.0,0.01401524]
[1757152011799,0.34825963,110910.0,110900.0,0.34018773]
[1757152013296,0.32617249,110910.0,110900.0,0.34018773]
[1757152016499,0.89811638,110920.0,110900.0,0.36119773]
[1757152016702,0.32617249,110910.0,110900.0,0.36119773]